bitfinex-derivatives/quotes_ETHF0:USTF0_20251013
["timestamp","ask_amount","ask_price","bid_price","bid_amount"]
[1760327991802,0.54962632,4140.7,4140.5,0.43433]
[1760327992010,0.54962632,4140.7,4138.0,10.96533]
[1760327992011,0.774,4139.9,4139.8,3.6391]
[1760327992196,0.774,4139.9,4139.8,3.2078]
[1760327992507,0.774,4139.9,4139.4,0.3199]
[1760327992508,1.20846,4139.3,4139.2,3.4193]
[1760327992700,0.1338,4139.5,4138.8,0.2140357]
[1760327992701,0.8768,4138.9,4138.8,0.2140357]
[1760327993008,0.76615,4139.4,4139.3,0.4313]
[1760327993206,0.76615,4139.4,4139.3,0.7512]
[1760327993604,1.20845,4139.4,4139.3,0.4313]
[1760327993804,1.20845,4139.4,4139.3,0.2115]
[1760327994308,0.56819,4140.0,4139.6,0.7512]
[1760327994502,0.56819,4140.0,4139.0,4.65170366]
[1760327994503,0.7661,4139.9,4139.4,0.43444]
[1760327994810,0.7661,4139.9,4139.6,0.3199]
[1760327995105,0.1338,4140.0,4139.0,4.65170366]
[1760327995106,0.1338,4140.5,4139.8,0.3199]
[1760327995309,0.1338,4140.5,4139.9,0.3199]
[1760327995310,0.76605,4140.3,4139.9,0.3199]
[1760327995502,0.76605,4140.3,4139.8,0.4344]
[1760327995503,0.76605,4140.3,4140.0,0.3199]
[1760327995903,0.76605,4140.3,4139.9,0.3199]
[1760327996099,0.3317,4140.2,4140.0,0.3199]
[1760327996507,0.3317,4140.4,4139.8,0.3199]
[1760327996707,0.43438,4140.1,4139.7,3.2078]
[1760327996907,0.3317,4140.0,4139.7,3.5277]
[1760327997207,0.43438,4140.1,4139.7,3.5277]
[1760327997411,0.4655,4140.0,4139.7,3.2078]
[1760327997713,0.1338,4140.0,4139.7,3.2078]
[1760327997910,0.3317,4139.9,4139.7,3.2078]
[1760327998212,0.56819,4140.0,4139.7,3.2078]
[1760327998412,0.3317,4139.8,4139.7,3.2078]
[1760327999414,0.76609,4140.0,4139.8,0.3199]
[1760327999614,0.43439,4140.0,4139.8,0.3199]
[1760327999814,0.3317,4139.9,4139.8,0.3199]
[1760328000314,0.3317,4140.1,4140.0,0.4313]
[1760328000516,0.3317,4140.1,4140.0,0.7512]
[1760328000910,0.5468,4140.1,4140.0,0.7512]
[1760328001507,0.1338,4140.5,4140.0,0.7512]
[1760328001809,3.2078,4140.8,4140.4,0.3199]
[1760328001810,0.3317,4140.6,4140.4,0.3199]
[1760328002017,0.1338,4140.5,4139.7,3.5277]
[1760328002215,1.20836,4140.3,4140.2,0.2115]
[1760328002414,0.64949,4140.0,4139.9,0.2115]
[1760328002612,0.00282632,4140.7,4140.6,0.7512]
[1760328003114,0.5468,4140.4,4140.3,0.4313]
[1760328003317,0.00282632,4140.7,4140.6,0.4313]
[1760328003623,0.00282632,4140.7,4140.6,1.18552]
[1760328004312,0.54962632,4140.7,4140.6,0.4313]
[1760328004520,0.87664,4140.4,4140.3,3.2078]
[1760328004818,0.98114,4140.4,4140.3,3.959]
[1760328005006,0.43434,4140.5,4140.3,3.6391]
[1760328005212,0.43434,4140.5,4140.4,0.7512]
[1760328005408,1.11494,4140.5,4140.4,0.4313]
[1760328006413,0.3317,4140.5,4140.4,0.7512]
[1760328006615,0.00282632,4140.7,4140.6,0.7512]
[1760328008717,0.33452632,4140.7,4140.6,0.7512]
[1760328009020,0.00282632,4140.7,4140.6,0.7512]
[1760328013219,3.77572,4142.5,4142.4,0.4313]
[1760328013419,3.97362,4142.5,4142.4,0.7512]
[1760328013816,0.1338,4142.0,4141.8,3.2078]
[1760328014017,0.3317,4141.4,4140.8,0.3199]
[1760328014216,0.76598,4141.0,4140.9,0.4313]
[1760328014416,0.43426,4141.2,4141.0,0.3199]
[1760328014616,3.50216984,4141.3,4141.1,0.4313]
[1760328014820,0.43632706,4141.4,4141.3,0.4313]
[1760328015126,0.98312706,4141.4,4141.3,0.4313]
[1760328015626,0.76802706,4141.4,4141.3,0.7512]
[1760328016314,0.98312706,4141.4,4141.3,0.4313]
[1760328016518,1.21032706,4141.4,4141.3,0.2115]
[1760328018027,0.774,4140.9,4140.8,0.00290319]
[1760328018829,3.93955262,4140.9,4140.8,0.00290319]
[1760328020132,0.774,4140.9,4140.8,0.21440319]
[1760328020432,0.774,4140.9,4140.8,0.00290319]
[1760328022725,3.20987706,4141.4,4140.9,0.3404]
[1760328023029,0.43428,4141.1,4141.0,0.793]
[1760328023218,0.75768,4141.1,4141.0,0.793]
[1760328023633,0.98778,4141.1,4141.0,0.793]
[1760328023836,0.98778,4141.1,4141.0,0.4526]
[1760328024130,1.21118,4141.1,4141.0,0.4526]
[1760328024722,1.21119,4140.9,4140.8,0.00290319]
[1760328025125,1.21119,4140.9,4140.8,0.22670319]
[1760328025325,0.98779,4140.9,4140.8,0.79590319]
[1760328025527,0.98779,4140.9,4140.8,0.45550319]
[1760328025729,0.3234,4140.9,4140.8,0.45550319]
[1760328026024,0.43428,4141.1,4141.0,0.793]
[1760328026227,0.75768,4141.1,4141.0,0.793]
[1760328027741,0.00207706,4141.4,4141.2,0.43425]
[1760328027921,0.00207706,4141.4,4141.3,4.0008]
[1760328028128,0.00207706,4141.4,4140.8,0.00290319]
[1760328028129,0.1374,4141.0,4140.8,3.21070319]
[1760328028325,0.7769,4140.9,4140.8,0.00290319]
[1760328028533,0.7769,4140.9,4140.8,0.22670319]
[1760328030330,3.20987706,4141.4,4140.8,0.22670319]
[1760328030331,0.75767,4141.1,4141.0,0.793]
[1760328030536,0.98777,4141.1,4141.0,0.793]
[1760328030740,0.98777,4141.1,4141.0,0.4526]
[1760328031435,3.53327706,4141.4,4141.1,0.3404]
[1760328031731,3.53327706,4141.4,4141.0,0.553]
[1760328031732,0.00207706,4141.4,4141.3,0.793]
[1760328033326,0.022,4142.8,4141.4,0.3404]
[1760328033327,0.3454,4142.8,4141.4,0.3404]
[1760328033528,1.00959,4142.8,4142.7,0.4526]
[1760328033729,0.3454,4142.8,4142.7,0.793]
[1760328034537,0.0245084,4142.8,4142.7,0.793]
[1760328035131,0.0245084,4142.8,4142.7,0.3404]
[1760328035328,0.0245084,4142.8,4142.5,3.5482]
[1760328035533,0.3234,4142.7,4142.5,3.2078]
[1760328035731,0.3234,4142.7,4142.6,0.3404]
[1760328035936,0.3234,4142.1,4142.0,3.2078]
[1760328037032,0.3234,4142.4,4142.0,3.2078]
[1760328037240,0.0245084,4142.8,4142.1,0.3404]
[1760328037241,0.3479084,4142.8,4142.1,0.3404]
[1760328037535,0.0245084,4142.8,4142.7,0.3404]
[1760328038128,0.0245084,4142.8,4142.6,0.3404]
[1760328038339,0.0245084,4142.8,4142.5,3.2078]
[1760328038544,0.3479084,4142.8,4142.6,0.3404]
[1760328038734,0.3479084,4142.8,4142.5,3.2078]
[1760328038935,0.3479084,4142.8,4142.6,0.3404]
[1760328039833,0.0245084,4142.8,4142.7,0.4341]
[1760328040041,0.0245084,4142.8,4142.7,0.3404]
[1760328040445,3.2078,4144.1,4142.7,0.3404]
[1760328040635,3.2078,4144.1,4143.5,0.55451]
[1760328040835,0.43399,4143.8,4143.1,3.2078]
[1760328041041,0.43401,4143.6,4143.1,3.2078]
[1760328041239,0.3234,4143.5,4143.2,0.3298]
[1760328041445,0.00236893,4143.5,4143.2,0.3298]
[1760328041745,0.32576893,4143.5,4143.2,0.3298]
[1760328042041,0.00236893,4143.5,4143.3,0.43404]
[1760328042238,0.00236893,4143.5,4143.4,0.3298]
[1760328044732,0.33336893,4143.5,4143.1,3.2078]
[1760328045037,0.13036893,4143.5,4143.1,3.2078]
[1760328045235,0.331,4143.4,4143.1,3.2078]
[1760328045635,0.00236893,4143.5,4143.2,0.3133]
[1760328045845,0.00236893,4143.5,4143.4,0.3133]
[1760328046147,0.43398,4143.9,4143.4,0.3133]
[1760328046148,3.2078,4144.7,4143.5,0.0735]
[1760328046345,3.2078,4144.7,4144.1,0.3133]
[1760328046844,3.2078,4144.7,4144.1,0.74724]
[1760328047043,0.331,4144.8,4144.6,3.2078]
[1760328047248,0.331,4144.7,4144.6,0.00200867]
[1760328048338,3.42050392,4144.7,4144.6,0.00200867]
[1760328048544,0.43404,4143.4,4143.1,3.2078]
[1760328048740,0.331,4143.3,4143.1,3.2078]
[1760328048939,0.331,4143.2,4143.1,3.2078]
[1760328049535,0.43405,4143.3,4143.1,3.52342824]
[1760328049739,0.89302,4143.5,4143.1,3.21012824]
[1760328050042,0.43403,4143.4,4143.2,0.3133]
[1760328050243,0.76503,4143.4,4143.2,0.3133]
[1760328051646,0.76503,4143.4,4143.1,3.21012824]
[1760328051841,0.76503,4143.4,4143.2,0.3276]
[1760328052047,0.331,4143.4,4143.2,0.3276]
[1760328052242,0.76503,4143.4,4143.2,0.3276]
[1760328052756,0.43405,4143.2,4143.1,3.21012824]
[1760328053049,0.4757,4143.5,4143.2,0.3276]
[1760328053237,0.3429,4143.4,4143.1,3.21012824]
[1760328053539,0.3429,4143.4,4143.2,0.3276]
[1760328053943,0.7769,4143.7,4143.2,0.3276]
[1760328054144,0.43398,4143.9,4143.5,0.43401]
[1760328054450,0.77688,4143.9,4143.7,0.3276]
[1760328055044,0.3429,4143.9,4143.7,0.3276]
[1760328055434,3.2078,4144.2,4143.7,0.3276]
[1760328055634,3.2078,4144.2,4144.0,0.0683]
[1760328055840,3.6417,4144.7,4144.2,0.43393]
[1760328056147,3.5507,4144.7,4144.0,0.0683]
[1760328056449,3.2078,4144.7,4144.6,0.3276]
[1760328056749,0.00310222,4144.8,4144.6,0.3276]
[1760328056950,0.3429,4144.7,4144.5,0.4339]
[1760328057449,0.00310222,4144.8,4144.5,0.4339]
[1760328057646,0.00310222,4144.8,4144.7,0.3276]
[1760328057647,0.34600222,4144.8,4144.7,0.3276]
[1760328058550,0.43699222,4144.8,4144.4,0.76152]
[1760328058742,0.3429,4144.6,4144.5,0.43391]
[1760328059356,0.3429,4144.6,4144.5,0.76151]
[1760328059563,0.34600222,4144.8,4144.7,0.43389]
[1760328060452,0.00310222,4144.8,4144.7,0.76149]
[1760328061454,0.34600222,4144.8,4144.7,0.43389]
[1760328061655,0.34600222,4144.8,4144.7,0.76149]
[1760328061854,0.3429,4144.4,4144.3,1.1412]
[1760328062650,0.00310222,4144.8,4144.5,0.43391]
[1760328062946,0.34600222,4144.8,4144.6,0.76149]
[1760328063149,0.3429,4144.7,4144.4,0.43392]
[1760328063354,0.00310222,4144.8,4144.3,1.1412]
[1760328063355,0.00310222,4144.8,4144.5,0.43391]
[1760328063545,0.00310222,4144.8,4144.3,1.1412]
[1760328063844,0.3429,4144.4,4144.3,1.1412]
[1760328064249,0.77682,4144.4,4144.3,1.1412]
[1760328064447,0.3429,4144.4,4144.3,1.1412]
[1760328068359,6.679995,4144.4,4144.3,1.1412]
[1760328068656,6.679995,4144.4,4143.1,3.21012824]
[1760328068657,0.3429,4143.2,4143.1,3.21012824]
[1760328068864,0.77687,4144.0,4143.5,0.1294]
[1760328069049,3.64175,4144.2,4143.6,0.3363]
[1760328069363,3.2078,4144.2,4144.0,0.1294]
[1760328069656,3.2078,4144.2,4144.1,0.3363]
[1760328069862,3.2078,4144.7,4144.6,0.3363]
[1760328070756,0.00310222,4144.8,4144.7,0.77019]
[1760328070964,0.00310222,4144.8,4144.7,3.97799]
[1760328072760,0.00310222,4144.8,4144.7,3.97699]
[1760328074558,3.2078,4146.1,4145.2,0.43384]
[1760328074761,3.2078,4146.1,4145.2,3.97794]
[1760328074965,0.77671,4145.5,4145.2,0.3363]
[1760328075269,0.3429,4145.5,4145.2,0.3363]
[1760328075567,0.22261731,4145.3,4145.2,3.5441]
[1760328076159,0.56551731,4145.3,4144.7,3.5441]
[1760328076368,0.43388,4144.8,4144.7,3.5441]
[1760328076663,0.3429,4144.8,4144.7,3.5441]
[1760328077164,0.3429,4145.1,4145.0,0.3363]
[1760328077362,0.22261731,4145.3,4145.0,0.3363]
[1760328077556,0.22261731,4145.3,4145.1,0.3363]
[1760328077757,0.22261731,4145.3,4145.2,0.77014]
[1760328078158,0.99934731,4145.3,4145.2,0.3363]
[1760328078361,0.3429,4145.1,4145.0,0.3363]
[1760328078665,0.43386,4145.1,4144.7,3.2078]
[1760328078859,0.56551731,4145.3,4144.7,3.2078]
[1760328079164,0.56551731,4145.3,4145.1,0.3363]
[1760328079369,0.77674,4145.2,4145.0,0.3363]
[1760328079564,0.3429,4145.1,4144.7,3.64169]
[1760328079770,0.22261731,4145.3,4144.6,0.3363]
[1760328080069,0.43384,4145.2,4144.9,0.3363]
[1760328080260,0.22261731,4145.3,4145.0,0.56325]
[1760328080461,0.22261731,4145.3,4145.1,0.3363]
[1760328080662,0.99934731,4145.3,4145.1,0.3363]
[1760328081468,0.56551731,4145.3,4145.1,0.3363]
[1760328081667,0.22261731,4145.3,4145.2,0.3417]
[1760328083969,0.56721731,4145.3,4145.2,0.3417]
[1760328084266,0.22261731,4145.3,4145.2,0.3417]
[1760328084467,0.85654369,4146.3,4146.0,0.3417]
[1760328084468,3.5524,4146.3,4146.0,0.3417]
[1760328084767,0.3446,4146.0,4145.9,0.3417]
[1760328084963,0.43378,4145.8,4145.4,0.43381]
[1760328085163,0.3446,4145.5,4145.4,0.3417]
[1760328085363,3.08249012,4146.0,4145.5,0.3417]
[1760328085364,0.77839,4145.7,4145.5,0.3417]
[1760328085562,0.7810415,4145.7,4145.6,0.3417]
[1760328085775,0.0026515,4145.7,4145.6,0.3417]
[1760328087069,0.3472515,4145.7,4145.6,0.3417]
[1760328087872,0.4414515,4145.7,4145.6,0.7917]
[1760328088066,0.2291515,4145.7,4145.6,0.7917]
[1760328088273,0.0026515,4145.7,4145.6,0.7917]
[1760328090579,0.4414515,4145.7,4145.6,0.7917]
[1760328090777,0.4414515,4145.7,4145.6,0.5638]
[1760328090778,0.7860515,4145.7,4145.6,0.5638]
[1760328091173,0.0026515,4145.7,4145.6,0.7917]
[1760328091774,0.2291515,4145.7,4145.6,0.7917]
[1760328091970,0.3446,4145.6,4145.4,0.77551]
[1760328092170,0.4388,4145.5,4145.4,1.22551]
[1760328092576,0.2291515,4145.7,4145.6,0.8838]
[1760328092778,0.0026515,4145.7,4145.6,1.2255]
[1760328092979,0.4414515,4145.7,4145.6,1.2255]
[1760328093685,0.0026515,4145.7,4145.6,1.2255]
[1760328094882,0.0026515,4145.7,4145.6,5.73749474]
[1760328095584,0.4414515,4145.7,4145.6,1.2255]
[1760328095888,0.0026515,4145.7,4145.6,1.2255]
[1760328097084,0.0026515,4145.7,4145.6,5.73749474]
[1760328097279,0.3446,4147.1,4146.3,1.42601]
[1760328097486,0.7834,4147.0,4146.9,0.43365]
[1760328097677,3.51604815,4147.0,4146.7,0.43367]
[1760328097883,0.3446,4146.7,4146.5,0.43369]
[1760328098177,0.3446,4146.5,4146.2,0.3417]
[1760328098386,0.7834,4146.3,4146.2,0.43373]
[1760328098579,0.7834,4146.3,4146.2,0.43643521]
[1760328099290,0.7834,4146.3,4146.2,0.00270521]
[1760328099491,3.86001938,4146.3,4146.2,0.00270521]
[1760328101378,3.51541938,4146.3,4146.2,1.22813521]
[1760328101584,0.3446,4146.6,4146.5,0.4337]
[1760328101893,0.2265,4146.6,4146.5,1.3591]
[1760328102083,0.7834,4146.6,4146.2,0.00270521]
[1760328102288,0.7834,4146.3,4146.2,0.00270521]
[1760328102692,0.7834,4146.3,4146.2,0.56650521]
[1760328102990,0.4388,4146.3,4146.2,0.56650521]
[1760328103192,0.4388,4146.3,4146.2,0.79440521]
[1760328103584,0.2265,4146.3,4146.2,0.79440521]
[1760328104789,0.4388,4146.3,4146.2,0.79440521]
[1760328104989,0.7588,4146.3,4146.2,0.79440521]
[1760328105302,0.23073365,4146.7,4146.6,0.4384]
[1760328105496,0.00313365,4146.7,4146.6,3.9768]
[1760328107001,0.77583365,4146.7,4146.6,3.416]
[1760328107202,0.77583365,4146.7,4146.6,3.2078]
[1760328107792,0.4527,4146.4,4146.3,0.9458]
[1760328107993,0.7727,4146.4,4146.3,0.9458]
[1760328108900,3.87332125,4146.4,4146.3,0.9458]
[1760328109101,3.87332125,4146.4,4145.1,3.5384]
[1760328109102,1.08437,4146.2,4145.1,3.5384]
[1760328109396,0.43382,4145.4,4145.2,0.3306]
[1760328110005,3.14829599,4145.3,4145.1,3.2078]
[1760328110200,0.43384,4145.2,4145.1,3.54064932]
[1760328110597,3.07993489,4145.2,4145.1,3.54064932]
[1760328111004,3.51377489,4145.3,4145.2,0.3306]
[1760328111206,0.43384,4145.3,4145.2,0.3306]
[1760328111603,3.54027448,4145.3,4145.2,0.3306]
[1760328112009,3.54027448,4145.3,4145.1,0.74294932]
[1760328112807,3.54027448,4145.3,4145.1,1.07144932]
[1760328113415,3.54027448,4145.3,4145.1,0.74294932]
[1760328113615,3.54027448,4145.3,4145.2,0.3285]
[1760328115010,3.54027448,4145.3,4145.2,0.5408]
[1760328115011,3.10643448,4145.3,4145.2,0.5408]
[1760328115309,0.43378,4145.8,4145.6,0.3285]
[1760328115509,0.43378,4145.8,4145.5,0.136]
[1760328115702,3.11748482,4145.7,4145.5,0.136]
[1760328116012,3.2078,4146.0,4145.1,0.74294932]
[1760328116214,3.1712917,4145.8,4145.3,0.3285]
[1760328116409,3.1712917,4145.8,4145.5,0.3483]
[1760328116621,0.43377,4145.9,4145.7,0.3285]
[1760328116818,0.43377,4145.9,4145.5,0.136]
[1760328116819,0.43377,4145.9,4145.5,0.3483]
[1760328117010,3.6050617,4145.9,4145.6,0.3285]
[1760328117309,3.1712917,4145.9,4145.7,0.3285]
[1760328117510,3.6050617,4145.9,4145.6,0.3285]
[1760328117817,0.43378,4145.8,4145.5,0.136]
[1760328118117,3.1712917,4145.9,4145.5,0.5698]
[1760328118319,3.1712917,4145.9,4145.7,0.43378]
[1760328118518,3.2078,4146.0,4145.9,0.76226]
[1760328118815,3.2078,4146.0,4145.9,1.19386]
[1760328119119,0.43374,4146.2,4146.1,0.3285]
[1760328119613,3.17283689,4146.2,4145.5,0.4645]
[1760328119810,3.17283689,4146.2,4145.6,0.3285]
[1760328120012,0.43379,4145.7,4145.5,0.136]
[1760328120211,0.43379,4145.7,4145.6,0.3285]
[1760328120507,0.43376,4146.0,4145.8,0.3285]
[1760328120713,0.43376,4146.0,4145.9,0.3285]
[1760328121010,3.2007759,4146.3,4146.1,0.3285]
[1760328121214,3.2078,4146.4,4146.1,0.3285]
[1760328121514,3.18745412,4146.3,4145.6,0.3285]
[1760328121714,0.43378,4145.8,4145.6,0.3285]
[1760328121910,0.43382,4145.4,4145.2,0.3285]
[1760328122313,3.10087525,4145.3,4145.1,0.74294932]
[1760328122615,0.43382,4145.4,4145.2,0.5408]
[1760328122821,0.43382,4145.4,4145.2,0.3285]
[1760328123020,3.53469525,4145.4,4145.2,0.3285]
[1760328123223,0.43382,4145.4,4145.2,0.3285]
[1760328123520,3.16441358,4145.3,4145.2,0.3285]
[1760328124120,0.43384,4145.2,4145.1,0.74294932]
[1760328124619,3.58563453,4145.2,4145.1,0.74294932]
[1760328125123,3.58563453,4145.2,4145.1,1.07144932]
[1760328125616,3.58563453,4145.2,4145.1,0.74294932]
[1760328127121,0.43387,4144.9,4144.8,1.0436]
[1760328127317,3.64167,4144.9,4144.8,1.0436]
[1760328127619,0.4339,4144.6,4144.5,0.4607]
[1760328128017,3.55285018,4144.6,4144.5,0.46325162]
[1760328128322,3.55285018,4144.6,4144.5,0.13475162]
[1760328128620,3.55285018,4144.6,4144.5,0.46325162]
[1760328129720,3.55285018,4144.6,4144.5,0.13475162]
[1760328130115,3.55285018,4144.6,4144.5,0.46325162]
[1760328131919,3.55285018,4144.6,4144.5,1.62e-06]
[1760328132116,3.55285018,4144.6,4142.9,3.2078]
[1760328132117,0.434,4143.6,4142.9,3.2078]
[1760328132624,3.52142279,4143.6,4142.9,3.2078]
[1760328133022,3.52413928,4143.6,4143.5,0.13817433]
[1760328134127,3.52413928,4143.6,4143.5,0.46667433]
[1760328134623,3.52413928,4143.6,4143.5,4.09e-06]
[1760328134819,0.43405,4143.2,4143.0,4.09e-06]
[1760328135025,3.2078,4143.1,4143.0,4.09e-06]
[1760328135224,6.29047088,4143.1,4143.0,4.09e-06]
[1760328135624,6.29047088,4143.1,4143.0,0.00299536]
[1760328136728,6.29047088,4143.1,4143.0,0.33149536]
[1760328137733,6.29047088,4143.1,4143.0,0.00299536]
[1760328138229,6.29047088,4143.1,4143.0,0.33149536]
[1760328141535,11.38564171,4143.1,4143.0,0.00299536]
[1760328141731,11.99847284,4143.1,4143.0,0.00299536]
[1760328141931,11.99847284,4143.1,4143.0,5.36e-06]
[1760328142132,6.90330201,4143.1,4143.0,0.13430536]
[1760328142425,6.90330201,4143.1,4143.0,0.45410536]
[1760328142631,6.29047088,4143.1,4143.0,0.45410536]
[1760328144333,6.90271205,4143.1,4143.0,0.45410536]
[1760328144528,6.90271205,4143.1,4143.0,0.1343]
[1760328144529,6.29047088,4143.1,4143.0,0.1343]
[1760328144722,7.98792009,4143.1,4142.6,0.6163]
[1760328144926,0.4341,4142.7,4142.6,0.482]
[1760328145327,3.61861279,4142.7,4142.5,0.136]
[1760328145622,1.08531,4142.5,4141.3,0.3198]
[1760328145825,1.08531,4142.5,4139.1,10.86192]
[1760328145826,0.43421,4141.6,4141.5,0.4558]
[1760328146225,3.56401849,4141.6,4141.5,0.4558]
[1760328146628,3.56401849,4141.6,4141.5,0.45806196]
[1760328146933,0.43432,4140.6,4140.5,0.4541]
[1760328147129,3.64212,4140.6,4140.5,0.4541]
[1760328147436,6.83670802,4140.6,4140.5,0.4541]
[1760328147640,6.40238802,4140.6,4140.5,0.4541]
[1760328147931,6.40470007,4140.6,4140.5,0.45620858]
[1760328148132,0.00231205,4140.6,4140.5,3.66400858]
[1760328148839,0.00231205,4140.6,4140.5,0.45620858]
[1760328149039,3.18080582,4140.6,4140.5,0.45620858]
[1760328157028,3.18080582,4140.6,4140.5,0.67400858]
[1760328157229,3.18080582,4140.6,4140.5,0.90120858]
[1760328157230,0.00231205,4140.6,4140.5,0.90120858]
[1760328158542,0.00231205,4140.6,4140.5,0.67400858]
[1760328158743,0.00231205,4140.6,4140.5,0.45620858]
[1760328159443,3.13212868,4140.6,4140.5,0.45620858]
[1760328161345,3.74759132,4140.6,4140.5,0.45620858]
[1760328163938,3.74759132,4140.6,4140.5,0.13640858]
[1760328164247,3.74759132,4140.6,4140.1,0.8023]
[1760328164248,4.83341132,4140.6,4140.1,0.8023]
[1760328164537,5.21172407,4140.2,4140.1,0.3198]
[1760328164742,5.82718671,4140.2,4140.1,0.3198]
[1760328164943,9.01330945,4140.2,4140.1,0.3198]
[1760328165344,9.01330945,4140.2,4140.1,0.32273886]
[1760328168437,7.00938538,4140.2,4140.1,0.55123886]
[1760328168635,3.82326264,4140.2,4140.1,0.76373886]
[1760328168842,0.00231205,4140.6,4140.5,0.5745]
[1760328169047,0.61872752,4140.6,4140.5,0.888]
[1760328172541,0.00231205,4140.6,4140.5,0.888]
[1760328172739,3.2078,4141.9,4141.5,0.1293]
[1760328173047,3.2078,4141.9,4141.8,0.7458]
[1760328173246,3.8253437,4141.9,4141.8,0.7458]
[1760328173844,3.82758621,4141.9,4141.8,0.7458]
[1760328174148,3.21004251,4141.9,4141.8,0.7458]
[1760328174548,0.00224251,4141.9,4141.8,0.7458]
[1760328175347,3.2078,4143.0,4142.5,0.1293]
[1760328175643,3.2078,4143.5,4143.4,0.7458]
[1760328175847,3.2078,4143.5,4143.4,0.3212]
[1760328175848,3.82536271,4143.5,4143.4,0.3212]
[1760328176052,3.2078,4143.5,4143.4,0.3212]
[1760328176347,3.2078,4143.5,4143.4,0.32394902]
[1760328176348,3.20980596,4143.5,4143.4,0.32394902]
[1760328176645,7.46779366,4143.5,4143.4,0.32394902]
[1760328177048,6.41711043,4143.5,4143.4,0.32394902]
[1760328178850,3.20931043,4143.5,4143.4,0.32394902]
[1760328181147,3.20931043,4143.5,4143.0,0.1293]
[1760328181352,3.64186,4143.1,4143.0,0.1293]
[1760328181847,6.83985767,4143.1,4143.0,0.1293]
[1760328182053,0.00200596,4143.5,4143.0,0.1293]
[1760328182054,0.00200596,4143.5,4143.0,0.5539]
[1760328182255,0.00200596,4143.5,4143.0,0.55646843]
[1760328182453,3.58495102,4143.4,4143.0,0.13186843]
[1760328182755,3.2078,4143.2,4143.0,0.13186843]
[1760328182957,3.64185,4143.2,4143.0,0.13186843]
[1760328183257,3.15092102,4143.1,4143.0,0.87766843]
[1760328183555,3.2078,4143.2,4143.1,0.7458]
[1760328184545,6.35619818,4143.2,4143.1,0.3212]
[1760328186057,6.35619818,4143.2,4143.1,0.5318]
[1760328186560,3.2078,4143.2,4143.1,0.7458]
[1760328188651,3.2078,4143.2,4143.0,0.13186843]
[1760328188652,0.00200596,4143.5,4143.4,0.3212]
[1760328188858,0.00200596,4143.5,4143.4,0.7458]
[1760328193656,3.07638716,4143.5,4143.4,0.3212]
[1760328198559,4.16142716,4143.5,4143.1,0.3212]
[1760328198763,3.64184,4143.2,4143.1,0.3212]
[1760328199070,6.74079409,4143.2,4143.1,0.3212]
[1760328200157,11.99079409,4143.2,4143.1,0.3212]
[1760328201258,11.99079409,4143.2,4143.1,0.15900351]
[1760328201259,13.46181245,4143.2,4143.1,0.15900351]
[1760328201461,11.99079409,4143.2,4143.0,1.94e-06]
[1760328201658,1.47213174,4143.1,4143.0,1.94e-06]
[1760328201851,0.61679115,4143.1,4143.0,1.94e-06]
[1760328202055,3.78510322,4143.1,4143.0,1.94e-06]
[1760328202354,4.64134128,4143.1,4143.0,1.94e-06]
[1760328202550,3.78510322,4143.1,4143.0,1.94e-06]
[1760328202964,3.16831207,4143.1,4143.0,1.94e-06]
[1760328203164,3.78596039,4143.1,4143.0,1.94e-06]
[1760328203668,4.64219845,4143.1,4143.0,1.94e-06]
[1760328204158,3.78596039,4143.1,4143.0,1.94e-06]
[1760328204364,4.64304586,4143.1,4143.0,1.94e-06]
[1760328208369,7.72759611,4143.1,4143.0,1.94e-06]
[1760328208866,16.15413076,4143.1,4143.0,1.94e-06]
[1760328209168,16.15413076,4143.1,4141.5,3.2078]
[1760328209169,1.08535,4142.4,4141.5,3.2078]
[1760328209361,4.51979611,4142.2,4141.5,3.2078]
[1760328209561,1.23044337,4141.6,4141.5,3.2078]
[1760328210161,1.23044337,4141.6,4141.5,3.210133]
[1760328210162,1.23306845,4141.6,4141.5,3.210133]
[1760328210468,4.39304112,4141.6,4141.5,3.210133]
[1760328211162,4.39304112,4141.6,4141.5,0.002333]
[1760328211563,7.6860844,4141.6,4141.5,0.002333]
[1760328212559,3.16259775,4141.6,4141.5,0.002333]
[1760328212764,3.2078,4141.9,4141.6,0.43421]
[1760328212965,3.2078,4142.4,4141.7,0.43419]
[1760328213262,3.2078,4142.4,4141.5,3.210133]
[1760328213263,3.07194616,4142.3,4141.5,3.210133]
[1760328213664,3.07502097,4142.3,4141.5,3.210133]
[1760328213863,0.00307481,4142.3,4142.1,0.43415]
[1760328216366,0.00307481,4142.3,4142.0,3.2078]
[1760328216870,0.00307481,4142.3,4142.0,3.64196]
[1760328217866,0.43721481,4142.3,4142.0,3.2078]
[1760328218469,0.43415,4142.2,4142.0,3.2078]
[1760328219073,0.00307481,4142.3,4142.0,3.2078]
[1760328223081,0.00307481,4142.3,4142.1,0.43415]
[1760328223687,3.2078,4143.4,4142.4,0.43412]
[1760328223981,3.11546885,4143.3,4142.8,3.2078]
[1760328224575,3.11852645,4143.3,4142.8,3.2078]
[1760328224882,0.43406,4143.1,4142.8,3.2078]
[1760328226076,0.0030576,4143.3,4142.8,3.2078]
[1760328226477,0.0030576,4143.3,4143.0,0.43405]
[1760328226785,0.0030576,4143.3,4142.8,3.2078]
[1760328227478,0.43404,4143.2,4142.8,3.2078]
[1760328227683,0.43406,4143.0,4142.8,3.2078]
[1760328227878,3.51897707,4143.2,4142.8,3.2078]
[1760328228185,3.08492707,4142.9,4142.8,3.2078]
[1760328228485,0.4341,4142.7,4142.3,3.2078]
[1760328229685,0.43411,4142.6,4142.3,3.2078]
[1760328230178,0.43411,4142.6,4142.4,0.341]
[1760328230484,0.43411,4142.6,4142.5,0.4709]
[1760328232281,3.53229382,4142.6,4142.5,0.4709]
[1760328234490,0.43407,4142.9,4142.6,0.341]
[1760328234778,0.43407,4142.9,4142.8,3.5488]
[1760328235175,3.56008394,4142.9,4142.8,3.5488]
[1760328238481,3.12601394,4142.9,4142.8,3.5488]
[1760328238678,0.0030576,4143.3,4142.8,3.5488]
[1760328238679,0.43404,4143.2,4143.1,0.341]